[Event "Ceske Budejovice GM 2022"]
[Site "Ceske Budejovice"]
[Date "2022.07.02"]
[Round "2.5"]
[White "Omelja, Artem"]
[Black "Kraus, Tomas"]
[Result "1/2-1/2"]
[ECO "A06"]
[WhiteElo "2478"]
[BlackElo "2488"]
[Annotator "TA"]
[PlyCount "142"]
[EventDate "2022.07.01"]
[EventType "tourn"]
[EventCountry "CZE"]
[SourceTitle "playchess.com"]
[Source "ChessBase"]
[SourceQuality "1"]
[TimeControl "40/5400+30:1800+30"]

{[%evp 9,142,13,14,9,0,0,0,0,0,0,0,0,0,0,9,0,0,0,0,0,0,0,0,0,0,0,33,0,22,0,0,0,30,0,33,0,0,-16,0,0,0,0,8,4,16,11,42,40,41,0,0,0,12,15,18,6,18,16,42,41,71,49,58,39,46,39,58,40,62,44,73,65,242,27,45,20,50,28,81,81,94,54,168,175,165,0,0,0,2,6,2,3,43,34,24,23,25,25,21,8,13,7,14,14,10,8,11,1,13,0,0,0,0,0,0,0,0,0,0,0,0,0,0,0,0,0,0,0,0,0,0,0,0,0,0]} 1. Nf3 {[%emt 0:00:04]} d5 {[%emt 0:00:54]} 2. e3 {[%emt 0:00:08]} Nf6 {[%emt 0:00:51]} 3. c4 {[%emt 0:00:09]} e6 {[%emt 0:00:42]} 4. b3 {[%emt 0:00:09]} a6 {[%emt 0:01:25]} 5. Nc3 {[%emt 0:02:46]} b6 {[%emt 0:01:02]} 6. Bb2 {[%emt 0:02:15] A13: English Opening: 1...e6.} Bb7 {[%emt 0:00:41]} 7. cxd5 {[%emt 0:00:19]} exd5 {[%emt 0:00:40]} 8. d4 {[%emt 0:00:41]} Nbd7 {[%emt 0:01:43]} 9. g3 {[%emt 0:00:11]} Bd6 {[%emt 0:01:26]} 10. Bg2 {[%emt 0:00:10]} O-O {[%emt 0:00:07]} 11. O-O {[%emt 0:00:09]} Qe7 {[%emt 0:02:55]} 12. Rc1 {[%emt 0:00:25]} Ne4 {[%emt 0:15:48]} 13. Re1 {[%emt 0:00:10][%cal Bf1e1,Be1e2,Be2c2][%mdl 32] [#]} Nxc3 $146 {[%emt 0:13:26]} ({Predecessor:} 13... Rae8 14. Ne2 a5 15. Nf4 c6 16. Nd3 f6 17. Re2 Qf7 18. Rec2 Rc8 19. Nd2 Nxd2 20. Qxd2 {1-0 (38) Malakhov,V (2668)-Xu,Y (2545) China 2019}) 14. Rxc3 {[%emt 0:02:37]} Nf6 {[%emt 0:02:50]} 15. Rc1 {[%emt 0:01:13]} Ne4 {[%emt 0:03:25]} 16. Re2 {[%emt 0:02:15]} a5 {[%emt 0:01:44]} 17. a4 {[%emt 0:01:40]} c6 {[%emt 0:09:24]} 18. Rec2 {[%emt 0:05:33]} Rac8 {[%emt 0:00:02]} 19. Ne1 {[%emt 0:01:50]} Rc7 {[%emt 0:06:30]} 20. Nd3 {[%emt 0:01:10]} Rd8 {[%emt 0:02:48]} 21. Qe2 {[%emt 0:03:38]} Re8 {[%emt 0:01:47]} 22. Re1 {[%emt 0:07:04]} (22. Ne5 $5) 22... Ba6 {[%emt 0:02:15][%cal Oh7h5]} 23. Qd1 {[%emt 0:00:16]} f5 {[%emt 0:08:32]} 24. Bf1 {[%emt 0:02:41]} Bb7 {[%emt 0:00:34]} 25. f3 {[%emt 0:03:34]} Ng5 {[%emt 0:01:29]} 26. Bg2 {[%emt 0:00:19]} Qd8 {[%emt 0:02:12]} 27. Qd2 {[%emt 0:01:26]} Nf7 {[%emt 0:02:07]} 28. Bc3 {[%emt 0:02:54]} Ba6 {[%emt 0:01:11]} 29. Nf2 {[%emt 0:01:41]} (29. Ne5 $5) 29... Bf8 {[%emt 0:02:32]} 30. Bf1 {[%emt 0:01:00]} Bb7 {[%emt 0:00:59]} 31. Nd3 {[%emt 0:02:11]} Qc8 {[%emt 0:01:13]} 32. Rcc1 {[%emt 0:00:35]} Ng5 {[%emt 0:04:15]} 33. Bg2 {[%emt 0:00:17]} Ne6 {[%emt 0:00:43]} 34. f4 {[%emt 0:01:47]} Rd8 {[%emt 0:01:51]} 35. Red1 {[%emt 0:02:41]} Ba3 {[%emt 0:01:28]} 36. Bb2 {[%emt 0:02:58]} (36. Ra1 $5 {[%cal Ra1a3]} Bf8 37. Ne5 $14) 36... Bf8 {[%emt 0:00:16]} 37. Bf3 {[%emt 0:01:33]} Qa8 {[%emt 0:02:08]} 38. Rc2 {[%emt 0:00:38]} Qc8 {[%emt 0:02:42]} 39. Rdc1 {[%emt 0:00:21]} Qa8 {[%emt 0:00:49]} 40. Qg2 {[%emt 0:00:55] Hoping for g4.} c5 $2 {[%emt 0:01:40]} (40... Bd6 $14) 41. dxc5 $2 {[%emt 0:33:19]} (41. g4 $1 $18 {[%cal Rg4f5]} fxg4 42. Qxg4 (42. Bxg4 Re8 $16)) 41... bxc5 $11 {[%emt 0:02:01]} 42. Ne5 {[%emt 0:00:00]} Qa7 {[%emt 0:11:21][%cal Oc5c4]} 43. Kh1 {[%emt 0:00:00]} Qb6 {[%emt 0:00:55]} (43... Re7 $11 {remains equal.}) 44. g4 $16 {[%emt 0:00:00] White is more active.} fxg4 {[%emt 0:01:14]} 45. Qxg4 {[%emt 0:00:00]} Be7 {[%emt 0:05:00]} (45... Re8 $1 $14) 46. Rg2 $18 {[%emt 0:00:00]} Bf6 {[%emt 0:01:07] [#]} 47. Nd7 {[%emt 0:00:00]} Rdxd7 $11 {[%emt 0:00:49]} 48. Bxf6 {[%emt 0:00:00]} Nd4 {[%emt 0:07:22]} 49. exd4 {[%emt 0:00:00]} Qxf6 {[%emt 0:00:14]} 50. dxc5 {[%emt 0:00:00]} Rf7 {[%emt 0:02:28]} 51. Rd2 {[%emt 0:00:00]} h5 {[%emt 0:01:55]} 52. Qg3 {[%emt 0:00:00]} ({But not} 52. Qxh5 $2 Qxf4 53. c6 Qxf3+ $19) 52... d4 {[%emt 0:00:33]} 53. Bxb7 {[%emt 0:00:00]} Rxb7 {[%emt 0:00:00]} 54. c6 {[%emt 0:00:00] The position is equal.} Rbc7 {[%emt 0:00:23]} 55. Qf3 {[%emt 0:01:11]} Qxf4 {[%emt 0:01:12]} (55... Qd6 {seems wilder.} 56. f5 Qe5 57. Re2 Qxf5 58. Re8+ Kh7) 56. Qxf4 {[%emt 0:00:17]} Rxf4 {[%emt 0:00:01][%mdl 4096] Endgame KRR-KRR} 57. Rc5 {[%emt 0:01:10]} Kf7 {[%emt 0:01:41]} 58. Kg2 {[%emt 0:02:55]} h4 {[%emt 0:00:32]} 59. Rd3 {[%emt 0:08:54]} Ke6 {[%emt 0:00:45]} 60. Rxa5 {[%emt 0:04:44]} Rxc6 {[%emt 0:00:11]} 61. Rg5 {[%emt 0:00:53]} Rc2+ {[%emt 0:01:02]} 62. Kh3 {[%emt 0:00:08]} Re2 {[%emt 0:00:54] Strongly threatening ...Re3+.} 63. Rg2 {[%emt 0:03:32]} Rxg2 {[%emt 0:00:36]} 64. Kxg2 {[%emt 0:00:07] KR-KR} Kd5 {[%emt 0:00:16]} 65. a5 {[%emt 0:01:39]} Kc5 {[%emt 0:00:23]} 66. Rd1 {[%emt 0:01:36]} Kb5 {[%emt 0:00:52]} 67. Ra1 {[%emt 0:00:16]} Ka6 {[%emt 0:00:18]} 68. b4 {[%emt 0:00:44]} g5 {[%emt 0:00:42]} 69. h3 {[%emt 0:00:17]} d3 {[%emt 0:00:25] Threatens to win with ...d2.} 70. Rd1 {[%emt 0:00:20]} Rxb4 {[%emt 0:00:38] And now ...Rd4 would win.} 71. Rxd3 {[%emt 0:00:11]} g4 {[%emt 0:00:18] Weighted Error Value: White=0.18 (very precise) /Black=0.17 (very precise)} 1/2-1/2

[Event "Ceske Budejovice GM 2022"]
[Site "Ceske Budejovice"]
[Date "2022.07.03"]
[Round "3.1"]
[White "Kraus, Tomas"]
[Black "Sahidi, Samir"]
[Result "1/2-1/2"]
[ECO "E00"]
[WhiteElo "2488"]
[BlackElo "2462"]
[Annotator "TA"]
[PlyCount "72"]
[EventDate "2022.07.01"]
[EventType "tourn"]
[EventCountry "CZE"]
[SourceTitle "playchess.com"]
[Source "ChessBase"]
[SourceQuality "1"]
[TimeControl "40/5400+30:1800+30"]

{[%evp 9,72,0,25,25,25,18,22,16,27,15,20,24,17,15,27,17,22,25,27,18,16,18,16,9,23,9,35,30,29,10,20,12,24,24,48,48,58,12,12,10,16,19,26,0,0,0,0,0,0,0,0,0,0,0,0,0,0,0,0,0,0,0,0,0,0]} 1. d4 {[%emt 0:00:11]} Nf6 {[%emt 0:00:43]} 2. c4 {[%emt 0:00:35]} e6 {[%emt 0:01:24]} 3. Bf4 {[%emt 0:01:21]} b6 {[%emt 0:02:19]} 4. a3 {[%emt 0:01:49]} d5 {[%emt 0:02:35]} 5. Nc3 {[%emt 0:04:52]} Bb7 {[%emt 0:04:22]} 6. cxd5 {[%emt 0:00:31] A50: Queen's Fianchetto Defence (1 d4 Nf6 2 c4 b6).} Nxd5 {[%emt 0:00:32]} 7. Nxd5 {[%emt 0:00:06]} Qxd5 {[%emt 0:04:32] [#]} 8. e3 $146 {[%emt 0:01:27]} ({Predecessor:} 8. Nf3 c5 9. e3 Nd7 10. Rc1 Be7 11. Bc4 Qf5 12. Bb5 O-O-O 13. Qa4 e5 14. Nxe5 Nxe5 15. Bxe5 Bf6 16. dxc5 Rd1+ 17. Rxd1 Qxe5 18. c6 {1-0 (18) Yang,K (2481)-Potkin,V (2571) Chess.com INT 2022}) 8... Bd6 {[%emt 0:03:26] [#] White must now prevent ...Bxf4.} 9. Ne2 {[%emt 0:03:01] With the idea Nc3.} ({Much weaker is} 9. Qa4+ Bc6 10. Qd1 Bxf4 11. exf4 O-O $17) 9... Bxf4 {[%emt 0:06:02]} 10. Nxf4 {[%emt 0:00:06]} Qd6 {[%emt 0:00:18]} 11. Bb5+ {[%emt 0:00:11]} c6 {[%emt 0:02:56]} 12. Be2 {[%emt 0:00:50]} Nd7 {[%emt 0:04:58]} 13. O-O {[%emt 0:02:40]} O-O {[%emt 0:01:33]} 14. Rc1 {[%emt 0:01:56]} Rfd8 {[%emt 0:02:28]} 15. b4 {[%emt 0:01:04]} e5 {[%emt 0:07:40]} 16. dxe5 {[%emt 0:00:03]} Nxe5 {[%emt 0:02:19]} 17. Qb3 {[%emt 0:00:38]} Rac8 {[%emt 0:05:06]} 18. Rfd1 {[%emt 0:00:54]} Qe7 {[%emt 0:00:46]} 19. Qa4 {[%emt 0:02:47]} Ba8 {[%emt 0:00:57]} 20. Qa6 {[%emt 0:13:22]} Qb7 {[%emt 0:06:19]} (20... g6 {is more complex.} 21. Rd4 c5 22. bxc5 bxc5 23. h3 Qc7) 21. Rd4 {[%emt 0:06:53]} Qxa6 {[%emt 0:04:47]} 22. Bxa6 {[%emt 0:00:36]} Rb8 {[%emt 0:00:05]} 23. Rcd1 {[%emt 0:09:14]} (23. Ne2 $14) 23... Rxd4 $11 {[%emt 0:01:03]} 24. exd4 {[%emt 0:01:43]} Ng6 {[%emt 0:03:08]} 25. Nxg6 {[%emt 0:01:25]} hxg6 {[%emt 0:00:11][%mdl 4096] Endgame KRB-KRB} 26. Be2 {[%emt 0:05:14]} g5 {[%emt 0:01:40] The position is equal.} 27. Bf3 {[%emt 0:04:02]} Kf8 {[%emt 0:02:52]} 28. Rc1 {[%emt 0:07:43]} Rd8 {[%emt 0:03:08]} 29. Kf1 {[%emt 0:09:52]} Ke7 {[%emt 0:01:37]} 30. Bxc6 {[%emt 0:07:48]} Bxc6 {[%emt 0:00:28]} 31. Rxc6 {[%emt 0:00:04]} Rxd4 {[%emt 0:00:10] KR-KR} 32. Rc7+ {[%emt 0:00:16]} Rd7 {[%emt 0:00:05]} 33. Rc6 {[%emt 0:00:16]} Rd3 {[%emt 0:01:10]} 34. Rc7+ {[%emt 0:00:05]} Rd7 {[%emt 0:00:07]} 35. Rc6 {[%emt 0:00:02]} Rd3 {[%emt 0:00:18]} 36. Rc7+ {[%emt 0:00:05]} Rd7 {[%emt 0:00:06] Weighted Error Value: White=0.05 (flawless) /Black=0.03 (flawless)} 1/2-1/2

[Event "Ceske Budejovice GM 2022"]
[Site "Ceske Budejovice"]
[Date "2022.07.03"]
[Round "3.2"]
[White "Gazik, Viktor"]
[Black "Omelja, Artem"]
[Result "1/2-1/2"]
[ECO "C67"]
[WhiteElo "2544"]
[BlackElo "2478"]
[Annotator "TA"]
[PlyCount "76"]
[EventDate "2022.07.01"]
[EventType "tourn"]
[EventCountry "CZE"]
[SourceTitle "playchess.com"]
[Source "ChessBase"]
[SourceQuality "1"]
[TimeControl "40/5400+30:1800+30"]

{[%evp 9,76,31,32,-31,-4,-12,-25,9,9,-6,10,10,32,28,32,32,29,32,37,23,14,10,14,16,19,16,22,18,20,25,27,22,28,14,21,21,17,18,51,50,50,44,50,44,52,41,43,58,79,85,95,96,93,104,108,74,84,6,8,0,0,0,0,0,0,0,0,0,0]} 1. e4 {[%emt 0:00:03]} e5 {[%emt 0:00:08][%cal Be7e5,Be5e4][%mdl 32]} 2. Nf3 {[%emt 0:00:37]} Nc6 {[%emt 0:00:08]} 3. Bb5 {[%emt 0:03:27]} Nf6 {[%emt 0:00:09]} 4. O-O {[%emt 0:02:47]} Nxe4 {[%emt 0:00:09]} 5. d4 {[%emt 0:01:50]} Nd6 {[%emt 0:00:24]} 6. Ba4 {[%emt 0:01:26] C67: Ruy Lopez: Berlin Defence: 4 0-0 Nxe4.} (6. Bxc6 $14 bxc6 7. dxe5) 6... e4 {[%emt 0:01:47]} 7. Ne5 {[%emt 0:07:20]} Be7 {[%emt 0:00:26]} 8. Nc3 {[%emt 0:12:28] Black has an edge.} O-O {[%emt 0:00:20]} 9. Re1 {[%emt 0:06:27][%cal Bf1e1,Be1e4,Be4f4][%mdl 32]} Nf5 {[%emt 0:05:59]} 10. Rxe4 {[%emt 0:04:03]} Nxe5 {[%emt 0:00:51]} (10... Nfxd4 $5 11. Nxc6 Nxc6 $14) 11. dxe5 {[%emt 0:01:04]} c6 {[%emt 0:00:22]} 12. Bf4 {[%emt 0:04:23]} d5 {[%emt 0:00:08]} 13. exd6 $1 {[%emt 0:00:04]} Bxd6 {[%emt 0:00:08]} 14. Bb3 {[%emt 0:00:39] [#]} Bxf4 $146 {[%emt 0:16:30]} ({Predecessor:} 14... Qf6 15. Qd2 Bxf4 16. Qxf4 Be6 17. g4 Qg6 18. Rae1 Bxb3 19. axb3 Nd6 20. Re7 Rad8 {0-1 (44) Mamedyarov,S (2770)-Van Foreest,J (2701) Tornelo INT 2021}) 15. Rxf4 {[%emt 0:00:04]} Be6 {[%emt 0:01:58]} 16. Bxe6 {[%emt 0:02:48]} fxe6 {[%emt 0:02:02]} 17. Qe1 {[%emt 0:01:40]} Nd4 {[%emt 0:04:02]} 18. Rxf8+ {[%emt 0:00:05]} (18. Rg4 {is interesting.} h5 19. Rg3 Qf6 20. Ne4) 18... Qxf8 {[%emt 0:00:43]} 19. Rd1 {[%emt 0:00:05]} Rd8 {[%emt 0:03:49]} 20. Qe4 {[%emt 0:00:38]} Qf6 {[%emt 0:02:14]} 21. Rd3 {[%emt 0:06:16]} e5 {[%emt 0:04:42]} 22. Qg4 {[%emt 0:19:26]} Rf8 {[%emt 0:22:33]} 23. Nd1 {[%emt 0:08:07]} Qf5 {[%emt 0:07:23]} (23... b5 {feels hotter.} 24. c3 Qf4 25. Qxf4 Ne2+) 24. Qxf5 {[%emt 0:00:34]} Nxf5 $14 {[%emt 0:00:13][%mdl 4096] Endgame KRN-KRN} 25. f3 {[%emt 0:02:18]} Nd4 {[%emt 0:02:50]} 26. Ne3 {[%emt 0:06:17]} h5 {[%emt 0:17:36]} 27. c3 {[%emt 0:02:33]} Ne2+ {[%emt 0:00:36]} 28. Kf2 {[%emt 0:04:58]} e4 {[%emt 0:00:12]} 29. Rd7 {[%emt 0:00:12]} exf3 {[%emt 0:00:07]} 30. gxf3 {[%emt 0:00:04]} Nf4 {[%emt 0:00:08]} 31. Rxb7 {[%emt 0:00:15]} Nh3+ {[%emt 0:01:47]} 32. Kg2 {[%emt 0:02:28]} Ng5 {[%emt 0:00:12][%cal Bh3g5,Bg5f3,Bf3e1][%mdl 32]} 33. Nc4 {[%emt 0:00:49]} ({Better is} 33. Rxa7 $16 {And now a4 would win.} Nxf3 34. h3) 33... Nxf3 $11 {[%emt 0:00:14] The position is equal.} 34. Rxa7 {[%emt 0:00:08]} Ne1+ {[%emt 0:03:53]} 35. Kg1 {[%emt 0:00:04]} Nf3+ {[%emt 0:01:04]} 36. Kg2 {[%emt 0:01:12]} Ne1+ {[%emt 0:00:18]} 37. Kg1 {[%emt 0:00:02]} Nf3+ {[%emt 0:00:13]} 38. Kg2 {[%emt 0:01:05]} Ne1+ {[%emt 0:00:08] Weighted Error Value: White=0.12 (very precise) /Black=0.04 (flawless)} 1/2-1/2

[Event "Ceske Budejovice GM 2022"]
[Site "Ceske Budejovice"]
[Date "2022.07.03"]
[Round "3.3"]
[White "Morgunov, Marc"]
[Black "Stefansson, Hannes"]
[Result "1-0"]
[ECO "C70"]
[WhiteElo "2376"]
[BlackElo "2541"]
[Annotator "TA"]
[PlyCount "71"]
[EventDate "2022.07.01"]
[EventType "tourn"]
[EventCountry "CZE"]
[SourceTitle "playchess.com"]
[Source "ChessBase"]
[SourceQuality "1"]
[TimeControl "40/5400+30:1800+30"]

{[%evp 19,71,14,24,39,31,21,20,21,20,10,21,14,10,0,0,0,0,-17,44,24,35,42,37,5,16,27,31,-1,-9,-3,-19,-31,16,0,0,9,72,72,77,86,70,79,87,81,189,193,187,189,594,606,943,924,864,718]} 1. e4 {[%emt 0:00:04]} e5 {[%emt 0:00:13]} 2. Nf3 {[%emt 0:00:05]} Nc6 {[%emt 0:00:22]} 3. Bb5 {[%emt 0:00:32]} a6 {[%emt 0:00:15]} 4. Ba4 {[%emt 0:00:04]} Nge7 {[%emt 0:00:25]} 5. O-O {[%emt 0:01:10]} Ng6 {[%emt 0:00:43]} 6. c3 {[%emt 0:03:25]} d6 {[%emt 0:00:22]} 7. d4 {[%emt 0:00:38]} Bd7 {[%emt 0:00:17]} 8. Re1 {[%emt 0:02:44]} Be7 {[%emt 0:00:31]} 9. Nbd2 {[%emt 0:02:09][%cal Bb1d2,Bd2f1,Bf1e3,Be3d5][%mdl 32]} O-O {[%emt 0:00:44]} 10. Nf1 {[%emt 0:10:30]} b5 {[%emt 0:01:02] is recently more successful than 10...Nh4.} 11. Bb3 {[%emt 0:03:10] C75: Ruy Lopez: Deferred Steinitz: 5 c3 Bd7 6 d4 without ...g6.} exd4 {[%emt 0:00:33]} 12. cxd4 {[%emt 0:02:07]} Na5 {[%emt 0:00:46]} (12... Bg4 {with more complications.} 13. Bd5 Bxf3 14. gxf3 Qd7) 13. Bc2 {[%emt 0:01:19] The position is equal.} c5 {[%emt 0:00:43]} 14. Ne3 {[%emt 0:07:14]} Re8 {[%emt 0:05:06] [#]} 15. Nd5 $146 {[%emt 0:04:46]} ({Predecessor:} 15. Bd2 Nc6 16. d5 Nd4 17. Nxd4 cxd4 18. Nf5 Bxf5 19. exf5 Ne5 20. Be4 Bf6 21. b3 {0-1 (44) Maghsoodloo,P (2701)-Demchenko,A (2654) Chess.com INT 2022}) 15... Bg4 {[%emt 0:09:26]} 16. dxc5 {[%emt 0:11:53]} dxc5 {[%emt 0:01:11]} 17. h3 {[%emt 0:00:16]} Be6 {[%emt 0:12:55]} 18. Nxe7+ {[%emt 0:02:24]} Rxe7 {[%emt 0:01:26]} ({Better is} 18... Qxe7 $11 19. Ng5 h6 20. Nxe6 Qxe6) 19. Ng5 {[%emt 0:03:42]} Qxd1 {[%emt 0:01:28]} (19... Nc6 {keeps more tension.} 20. Be3 Nd4 21. f4 Bc4) 20. Rxd1 {[%emt 0:01:12]} Bd7 {[%emt 0:01:48]} 21. f4 {[%emt 0:08:57]} Bc6 {[%emt 0:04:37]} 22. e5 {[%emt 0:02:48]} f6 {[%emt 0:00:58]} 23. Ne4 {[%emt 0:01:18]} fxe5 {[%emt 0:00:23]} 24. f5 {[%emt 0:00:27]} Nf4 {[%emt 0:00:36]} 25. Re1 {[%emt 0:03:56] Inhibits Ne2+.} Rc7 {[%emt 0:11:38]} (25... Rd8 $15) 26. g3 {[%emt 0:07:15]} Nd5 {[%emt 0:02:38][%cal Bf4d5,Bd5b4,Bb4c2][%mdl 32]} (26... Nxh3+ $2 27. Kg2 $18) 27. Nxc5 {[%emt 0:01:05]} Be8 {[%emt 0:01:13] [#]} (27... Rac8 $11 28. Ne6 (28. Rxe5 Ba8 $17) (28. Nxa6 Ra7 $15) 28... Rd7) 28. Be4 $1 $16 {[%emt 0:06:24] White is more active.} Rxc5 {[%emt 0:00:16]} 29. b4 $1 {[%emt 0:00:02]} Nxb4 {[%emt 0:00:16]} 30. Bxa8 {[%emt 0:00:15] Black must now prevent Ba3. A strong pair of Bishops.} Nc2 {[%emt 0:03:23] Against Ba3} 31. Be3 {[%emt 0:00:06]} Rc3 {[%emt 0:00:46] [#]} (31... Rc8 $16 32. Rac1 Rxa8 33. Rxc2 Nc4) 32. Bd2 $1 $18 {[%emt 0:01:13][%csl LRc3,LRe5]} ({And not} 32. Bd5+ Bf7 33. Bd2 Rxg3+ 34. Kh2 {[#]} Bxd5 $1 $11) 32... Rxg3+ {[%emt 0:01:24]} 33. Kh2 {[%emt 0:01:21]} Ra3 {[%emt 0:00:19]} (33... Rd3 34. Bxa5 Nxa1) 34. Rac1 {[%emt 0:04:40] White is clearly winning.} Bc6 {[%emt 0:08:53]} 35. Rxc2 {[%emt 0:02:21][%cal Oe1e5]} Bxa8 {[%emt 0:00:12]} 36. Bb4 {[%emt 0:00:26] Weighted Error Value: White=0.07 (flawless) /Black=0.42} 1-0

[Event "Ceske Budejovice GM 2022"]
[Site "Ceske Budejovice"]
[Date "2022.07.03"]
[Round "3.4"]
[White "Vykouk, Jan"]
[Black "Malinovsky, Karel"]
[Result "1/2-1/2"]
[ECO "C55"]
[WhiteElo "2476"]
[BlackElo "2463"]
[Annotator "RC"]
[PlyCount "95"]
[EventDate "2022.07.01"]
[EventType "tourn"]
[EventCountry "CZE"]
[SourceTitle "playchess.com"]
[Source "ChessBase"]
[SourceQuality "1"]
[TimeControl "40/5400+30:1800+30"]

1. e4 {[%emt 0:00:03]} e5 {[%emt 0:00:08]} 2. Nf3 {[%emt 0:00:06]} Nc6 {[%emt 0:00:05]} 3. Bc4 {[%emt 0:00:05]} Nf6 {[%emt 0:00:10]} 4. d3 {[%emt 0:00:04]} Be7 {[%emt 0:00:10]} 5. O-O {[%emt 0:00:17]} O-O {[%emt 0:00:10]} 6. Nc3 {[%emt 0:00:13]} d6 {[%emt 0:01:23]} 7. a4 {[%emt 0:00:07]} Na5 {[%emt 0:03:02]} 8. Ba2 {[%emt 0:00:06]} c5 {[%emt 0:00:09]} 9. Bg5 {[%emt 0:00:04]} Nc6 {[%emt 0:00:13]} 10. Bxf6 {[%emt 0:00:29]} Bxf6 {[%emt 0:00:07]} 11. Nd5 {[%emt 0:00:07]} g6 {[%emt 0:03:46]} 12. c3 {[%emt 0:00:25]} Bg7 {[%emt 0:04:15]} 13. h3 {[%emt 0:00:21]} Be6 {[%emt 0:05:26]} 14. Qd2 {[%emt 0:00:06]} Ne7 {[%emt 0:03:38]} 15. Nxe7+ {[%emt 0:02:36]} Qxe7 {[%emt 0:00:39]} 16. b4 {[%emt 0:00:35]} cxb4 {[%emt 0:11:22]} 17. cxb4 {[%emt 0:00:19]} Rfd8 {[%emt 0:01:40]} 18. Bxe6 {[%emt 0:04:54]} Qxe6 {[%emt 0:01:09]} 19. Rfc1 {[%emt 0:00:30]} d5 {[%emt 0:06:21]} 20. Qe3 {[%emt 0:01:07]} Qe7 {[%emt 0:15:29]} 21. Rab1 {[%emt 0:08:24]} h5 {[%emt 0:13:49]} 22. Qc5 {[%emt 0:13:49]} Qxc5 {[%emt 0:08:16]} 23. Rxc5 {[%emt 0:03:59]} dxe4 {[%emt 0:01:17]} 24. dxe4 {[%emt 0:00:08]} Rac8 {[%emt 0:00:08]} 25. Rbc1 {[%emt 0:02:35]} Rxc5 {[%emt 0:00:17]} 26. Rxc5 {[%emt 0:00:05]} Bf8 {[%emt 0:02:51]} 27. Rb5 {[%emt 0:04:27]} b6 {[%emt 0:05:26]} 28. g4 {[%emt 0:02:32]} hxg4 {[%emt 0:02:50]} 29. hxg4 {[%emt 0:00:05]} Rd1+ {[%emt 0:02:32]} 30. Kg2 {[%emt 0:00:08]} Bd6 {[%emt 0:00:40]} 31. a5 {[%emt 0:01:48]} Bc7 {[%emt 0:01:13]} 32. axb6 {[%emt 0:01:51]} axb6 {[%emt 0:00:15]} 33. Nxe5 {[%emt 0:01:00]} Rd4 {[%emt 0:01:13]} 34. Kf3 {[%emt 0:01:26]} Bxe5 {[%emt 0:00:15]} 35. Rxe5 {[%emt 0:00:04]} Rxb4 {[%emt 0:00:05]} 36. Re8+ {[%emt 0:00:06]} Kg7 {[%emt 0:00:08]} 37. g5 {[%emt 0:00:07]} f5 {[%emt 0:04:19]} 38. gxf6+ {[%emt 0:07:35]} Kxf6 {[%emt 0:00:06]} 39. Kf4 {[%emt 0:00:14]} Rb2 {[%emt 0:02:44]} 40. f3 {[%emt 0:00:25]} g5+ {[%emt 0:01:45]} 41. Kg4 {[%emt 0:31:28]} Rg2+ {[%emt 0:01:55]} 42. Kh3 {[%emt 0:00:00]} Rb2 {[%emt 0:01:14]} 43. Rf8+ {[%emt 0:00:00]} Kg6 {[%emt 0:01:09]} 44. Rd8 {[%emt 0:00:00]} b5 {[%emt 0:03:43]} 45. Rd6+ {[%emt 0:00:00]} Kh5 {[%emt 0:00:29]} 46. Kg3 {[%emt 0:00:00]} b4 {[%emt 0:01:25]} 47. Rb6 {[%emt 0:00:00]} b3 {[%emt 0:04:18]} 48. f4 {[%emt 0:00:00]} 1/2-1/2